Workbook

Sheet LoadFactors
B1: CTDOT Strength Live Load Factors
B4: Bridge Length | C4: 4 | D4: ft
B5: ADTT | C5: 3600 | D5: Trucks per Day
B6: Analysis Type | C6: Other
B7: Bridge Type | C7: Other
B8: Vehicle | C8: ɣLL | D8: Permit Type
B9: CT-P76.5 | C9: =ROUNDUP(VLOOKUP(LoadFactors!B9,SpecCheck!E:K,7,FALSE),2) -> 1.39 | D9: Routine - Unlimited
B10: CT-P120(6) | C10: =VLOOKUP(LoadFactors!B10,SpecCheck!E:K,7,FALSE) -> 1.265 | D10: Routine - Unlimited
B11: CT-P140(7)a | C11: =ROUNDUP(VLOOKUP(LoadFactors!B11,SpecCheck!E:K,7,FALSE),2) -> 1.27 | D11: Routine - Unlimited
B12: CT-P140(7)b | C12: =ROUNDUP(VLOOKUP(LoadFactors!B12,SpecCheck!E:K,7,FALSE),2) -> 1.27 | D12: Routine - Unlimited
B13: CT-P160(8)a | C13: =ROUNDUP(VLOOKUP(LoadFactors!B13,SpecCheck!E:K,7,FALSE),2) -> 1.27 | D13: Routine - Unlimited
B14: CT-P160(8)b | C14: =ROUNDUP(VLOOKUP(LoadFactors!B14,SpecCheck!E:K,7,FALSE),2) -> 1.27 | D14: Routine - Unlimited
B15: CT-P180(9) | C15: =ROUNDUP(VLOOKUP(LoadFactors!B15,SpecCheck!E:K,7,FALSE),2) -> 1.2 | D15: Special - Mixed
B16: CT-P200(10) | C16: =ROUNDUP(VLOOKUP(LoadFactors!B16,SpecCheck!E:K,7,FALSE),2) -> 1.2 | D16: Special - Mixed
B17: CT-P380 | C17: =ROUNDUP(VLOOKUP(LoadFactors!B17,SpecCheck!E:K,7,FALSE),2) -> 1.1 | D17: Special - Escorted
B18: CT-TLC | C18: =ROUNDUP(VLOOKUP(LoadFactors!B18,SpecCheck!E:K,7,FALSE),2) -> 1.2 | D18: Special - Mixed
B19: Legal | C19: =ROUNDUP(VLOOKUP(LoadFactors!B19,SpecCheck!E:K,7,FALSE),2) -> 1.4 | D19: N/A
B20: Emergency | C20: =ROUNDUP(VLOOKUP(LoadFactors!B20,SpecCheck!E:K,7,FALSE),2) -> 1.3 | D20: N/A
B21: Inventory | C21: =ROUNDUP(VLOOKUP(LoadFactors!B21,SpecCheck!E:K,7,FALSE),2) -> 1.75 | D21: N/A
B22: Operating | C22: =ROUNDUP(VLOOKUP(LoadFactors!B22,SpecCheck!E:K,7,FALSE),2) -> 1.35 | D22: N/A

Sheet PermitTruckData
C4: Vehicle | D4: Permit Type | E4: Frequency | F4: Load Condition | G4: Number of Axels | H4: Gross Vehicle Weight (kips) | I4: Vehicle Length (ft) | K4: Axel Number
K5: 1 | L5: 2 | M5: 3 | N5: 4 | O5: 5 | P5: 6 | Q5: 7 | R5: 8 | S5: 9 | T5: 10 | U5: 11 | V5: 12 | W5: 13 | X5: 14 | Y5: 15 | Z5: 16 | AA5: 17 | AB5: 18 | AC5: 19
C6: CT-P76.5 | D6: Annual | E6: Unlimited | F6: Mixed | G6: 4 | H6: 76.5 | I6: =SUM(K6:AC6) -> 18.2 | J6: Spacing (ft) | K6: 9.6 | L6: 4.1 | M6: 4.5 | N6: 0
J7: Axel Load (k) | K7: 13.5 | L7: 18 | M7: 22.5 | N7: 22.5
C8: CT-P120(6) | D8: Annual | E8: Unlimited | F8: Mixed | G8: 6 | H8: 120 | I8: =SUM(K8:AC8) -> 47 | J8: Spacing (ft) | K8: 11 | L8: 4 | M8: 24 | N8: 4 | O8: 4 | P8: 0
J9: Axel Load (k) | K9: 11 | L9: 23 | M9: 23 | N9: 21 | O9: 21 | P9: 21
C10: CT-P140(7)a | D10: Annual | E10: Unlimited | F10: Mixed | G10: 7 | H10: 140 | I10: 74.9 | J10: Spacing (ft) | K10: 15.2 | L10: 4.5 | M10: 42.3 | N10: 4.3 | O10: 4.3 | P10: 4.3 | Q10: 0
J11: Axel Load (k) | K11: 12 | L11: 24 | M11: 24 | N11: 20 | O11: 20 | P11: 20 | Q11: 20
C12: CT-P140(7)b | D12: Annual | E12: Unlimited | F12: Mixed | G12: 7 | H12: 140 | I12: 74.9 | J12: Spacing (ft) | K12: 15.2 | L12: 4.5 | M12: 42.3 | N12: 4.3 | O12: 4.3 | P12: 4.3 | Q12: 0
J13: Axel Load (k) | K13: 12 | L13: 32 | M13: 32 | N13: 16 | O13: 16 | P13: 16 | Q13: 16
C14: CT-P160(8)a | D14: Annual | E14: Unlimited | F14: Mixed | G14: 8 | H14: 160 | I14: 76.1 | J14: Spacing (ft) | K14: 11.8 | L14: 4.5 | M14: 4.6 | N14: 42.3 | O14: 4.3 | P14: 4.3 | Q14: 4.3 | R14: 0
J15: Axel Load (k) | K15: 12 | L15: 22 | M15: 22 | N15: 22 | O15: 20.5 | P15: 20.5 | Q15: 20.5 | R15: 20.5
C16: CT-P160(8)b | D16: Annual | E16: Unlimited | F16: Mixed | G16: 8 | H16: 160 | I16: 67.7 | J16: Spacing (ft) | K16: 10.3 | L16: 4.5 | M16: 4.5 | N16: 35.8 | O16: 4.2 | P16: 4.2 | Q16: 4.2 | R16: 0
J17: Axel Load (k) | K17: 12 | L17: 24.67 | M17: 24.67 | N17: 24.67 | O17: 18.5 | P17: 18.5 | Q17: 18.5 | R17: 18.5
C18: CT-P180(9) | D18: Special | E18: Single-Trip | F18: Mixed | G18: 9 | H18: 180 | I18: 78.7 | J18: Spacing (ft) | K18: 11.6 | L18: 4 | M18: 11.3 | N18: 4.2 | O18: 35 | P18: 4.2 | Q18: 4.2 | R18: 4.2 | S18: 0
J19: Axel Load (k) | K19: 12 | L19: 21 | M19: 21 | N19: 21 | O19: 21 | P19: 21 | Q19: 21 | R19: 21 | S19: 21
C20: CT-P200(10) | D20: Special | E20: Single-Trip | F20: Mixed | G20: 9 | H20: 180 | I20: 75 | J20: Spacing (ft) | K20: 10.1 | L20: 4.2 | M20: 4.6 | N20: 5.5 | O20: 4.3 | P20: 33.4 | Q20: 4.3 | R20: 4.3 | S20: 4.3 | T20: 0
J21: Axel Load (k) | K21: 12 | L21: 18.8 | M21: 18.8 | N21: 18.8 | O21: 18.8 | P21: 18.8 | Q21: 23.5 | R21: 23.5 | S21: 23.5 | T21: 23.5
C22: CT-P380 | D22: Special | E22: Single-Trip | F22: Escorted | G22: 19 | H22: 380 | I22: 177.4 | J22: Spacing (ft) | K22: 14.08 | L22: 5 | M22: 5 | N22: 14.08 | O22: 5 | P22: 5 | Q22: 14.08 | R22: 5 | S22: 5 | T22: 47 | U22: 5 | V22: 5 | W22: 14.08 | X22: 5 | Y22: 5 | Z22: 14.08 | AA22: 5 | AB22: 5 | AC22: 0
J23: Axel Load (k) | K23: 12.8 | L23: 20.3 | M23: 20.3 | N23: 20.3 | O23: 21 | P23: 21 | Q23: 21 | R23: 20.3 | S23: 20.3 | T23: 20.3 | U23: 20.55 | V23: 20.55 | W23: 20.55 | X23: 19.7 | Y23: 19.7 | Z23: 19.7 | AA23: 20.55 | AB23: 20.55 | AC23: 20.55
C24: CT-TLC | D24: Special | E24: Single-Trip | F24: Mixed | G24: 9 | H24: 279.6 | I24: 84.77 | J24: Spacing (ft) | K24: 9.6 | L24: 4.1 | M24: 4.5 | N24: 18 | O24: 14.33 | P24: 24.74 | Q24: 3 | R24: 6.5 | S24: 0
J25: Axel Load (k) | K25: 13.5 | L25: 18 | M25: 22.5 | N25: 22.5 | O25: 63.7 | P25: 64.9 | Q25: 18 | R25: 18 | S25: 38.5
C26: CT-P204 | D26: Annual | E26: Unlimited | F26: Mixed | G26: 8 | H26: 180 | I26: =SUM(K26:AC26) -> 55 | J26: Spacing (ft) | K26: 11 | L26: 4 | M26: 4 | N26: 24 | O26: 4 | P26: 4 | Q26: 4 | R26: 0
J27: Axel Load (k) | K27: 15 | L27: 27 | M27: 27 | N27: 27 | O27: 27 | P27: 27 | Q27: 27 | R27: 27

Sheet SpecCheck
E1: Truck | F1: PWR | G1: AL | H1: GVW | I1: Start Axel | J1: End Axel | K1: LLF
B2: Bridge Length | C2: =CONVERT(LoadFactors!C4,LoadFactors!D4,"ft") -> 4 | D2: ft | E2: Inventory | K2: 1.75
B3: ADTT | C3: =LoadFactors!C5 -> 3600 | E3: Operating | K3: 1.35
E4: Legal | K4: 1.3975
E5: Emergency | K5: 1.3
E6: CT-P76.5 | G6: 0 | H6: 22.5 | I6: 4 | J6: 1 | K6: 1.3825
E7: CT-P120(6) | F7: 10.5 | G7: 4 | H7: 42 | I7: 4 | J7: 6 | K7: 1.265
E8: CT-P140(7)a | F8: 10.5 | G8: 0 | H8: 12 | I8: 1 | J8: 1 | K8: 1.265
E9: CT-P140(7)b | F9: 10.5 | G9: 0 | H9: 12 | I9: 1 | J9: 1 | K9: 1.265
E10: CT-P160(8)a | F10: 10.5 | G10: 0 | H10: 12 | I10: 1 | J10: 1 | K10: 1.265
E11: CT-P160(8)b | F11: 10.5 | G11: 0 | H11: 12 | I11: 1 | J11: 1 | K11: 1.265
E12: CT-P180(9) | K12: 1.2
E13: CT-P200(10) | K13: 1.2
E14: CT-P380 | K14: 1.1
E15: CT-TLC | K15: 1.2
E16: CT-P204 | F16: 10.5 | G16: 0 | H16: 15 | I16: 1 | J16: 1 | K16: 1.265

Sheet Revisions
A6: # | B6: Verision | C6: Date | D6: By | E6: Description
A7: 1 | B7: 1.1 | C7: 2017-04-03 | D7: cmp | E7: Expanded Legal Functatility to RC Box Culvert
A8: 2 | B8: 1.1 | C8: 2017-04-03 | D8: cmp | E8: Formatting
A9: 3 | B9: 2 | C9: 2017-12-18 | D9: cmp | E9: Added Emergency Vehicles
A10: 4 | B10: 2 | C10: 2017-12-19 | D10: cmp | E10: moved Inventory, Operating, Legal, and Emergency ratings to SpecCheck
A11: 5 | B11: 2 | C11: 2017-03-29 | D11: cmp | E11: updated permit classifications per BLRM 2018.1.0
